fUSD/lending_fUSD_20260528
["ID","MTS","AMOUNT","RATE_DAILY","PERIOD"]
[423192075,1779917434000,-254.66943427,0.000204,2]
[423192074,1779917434000,-574.6,0.00020381,2]
[423192072,1779917434000,-653.0,0.0002,2]
[423192076,1779917434000,-254.66943427,0.000206,2]
[423192078,1779917434000,-1545.9448655,0.000207,2]
[423192077,1779917434000,-2080.17592889,0.00020602,2]
[423192079,1779917434000,-238.34972725,0.000207,2]
[423192081,1779917434000,-254.66943427,0.000209,2]
[423192125,1779917434000,-159.2305698,0.00022,2]
[423192080,1779917434000,-388.0,0.00020703,2]
[423192083,1779917434000,-238.34972725,0.000209,2]
[423192073,1779917434000,-687.05630811,0.00020278,2]
[423192082,1779917434000,-1545.9448655,0.000209,2]
[423192085,1779917434000,-225.0,0.00021,2]
[423192094,1779917434000,-254.66943427,0.000211,2]
[423192089,1779917434000,-213.0,0.00021,2]
[423192090,1779917434000,-198.0,0.00021,2]
[423192091,1779917434000,-151.0,0.00021,2]
[423192093,1779917434000,-446.0,0.00021,2]
[423192097,1779917434000,-2157.14243826,0.0002115,2]
[423192088,1779917434000,-152.0,0.00021,2]
[423192086,1779917434000,-152.74589189,0.00021,2]
[423192084,1779917434000,-154.0,0.00021,2]
[423192087,1779917434000,-159.0,0.00021,2]
[423192092,1779917434000,-155.0,0.00021,2]
[423192166,1779917435000,-500.0,0.00024,2]
[423192165,1779917435000,-472.72857126,0.00023805,2]
[423192169,1779917435000,-213.0,0.00024,2]
[423192156,1779917435000,-198.0,0.00023,2]
[423192164,1779917435000,-472.7,0.00023624,2]
[423192161,1779917435000,-472.7,0.0002345,2]
[423192163,1779917435000,-2000.0,0.0002357,2]
[423192159,1779917435000,-472.7,0.00023175,2]
[423192160,1779917435000,-472.7,0.00023357,2]
[423192167,1779917435000,-154.0,0.00024,2]
[423192162,1779917435000,-150.999999,0.000235,2]
[423192168,1779917435000,-225.0,0.00024,2]
[423192176,1779917435000,-22630.87504843,0.00024362,2]
[423192172,1779917435000,-446.0,0.00024,2]
[423192175,1779917435000,-574.6,0.00024324,2]
[423192174,1779917435000,-240.0,0.000242,5]
[423192173,1779917435000,-687.05630811,0.00024076,2]
[423192171,1779917435000,-162.0,0.00024,2]
[423192178,1779917435000,-928.0,0.00024383,2]
[423192182,1779917435000,-1000.0,0.00024658,2]
[423192180,1779917435000,-281.31,0.00024658,2]
[423192179,1779917435000,-228.9,0.00024658,2]
[423192181,1779917435000,-151.0,0.00024658,2]
[423192177,1779917435000,-1373.003,0.00024383,2]
[423192158,1779917435000,-446.0,0.00023,2]
[423192170,1779917435000,-198.0,0.00024,2]
[423192157,1779917435000,-151.0,0.00023,2]
[423192128,1779917435000,-202.688267,0.00022,2]
[423192154,1779917435000,-154.65507168,0.00023,2]
[423192129,1779917435000,-202.688267,0.00022,2]
[423192127,1779917435000,-213.0,0.00022,2]
[423192132,1779917435000,-202.688267,0.00022,2]
[423192130,1779917435000,-198.0,0.00022,2]
[423192131,1779917435000,-202.688267,0.00022,2]
[423192134,1779917435000,-168.56855013,0.00022,2]
[423192133,1779917435000,-151.0,0.00022,2]
[423192135,1779917435000,-446.0,0.00022,2]
[423192136,1779917435000,-181.83,0.00022,2]
[423192140,1779917435000,-2155.29,0.00022466,2]
[423192137,1779917435000,-574.6,0.00022353,2]
[423192138,1779917435000,-1094.74,0.00022466,2]
[423192155,1779917435000,-213.0,0.00023,2]
[423192139,1779917435000,-1905.66,0.00022466,2]
[423192143,1779917435000,-304.004321,0.00022466,2]
[423192146,1779917435000,-943.0,0.00022471,5]
[423192144,1779917435000,-304.004321,0.00022466,2]
[423192142,1779917435000,-304.004321,0.00022466,2]
[423192145,1779917435000,-304.004321,0.00022466,2]
[423192149,1779917435000,-949.0,0.00022777,5]
[423192147,1779917435000,-1519.58,0.00022691,2]
[423192148,1779917435000,-969.0,0.00022777,5]
[423192151,1779917435000,-472.7,0.00022988,2]
[423192150,1779917435000,-472.7,0.00022812,2]
[423192152,1779917435000,-154.0,0.00023,2]
[423192153,1779917435000,-225.0,0.00023,2]
[423192141,1779917435000,-151.0,0.00022466,2]
[423192184,1779917435000,-155.63,0.00024766,2]
[423192183,1779917435000,-277.08,0.00024658,2]
[423192188,1779917435000,-237.39016287,0.00025,2]
[423192218,1779917435000,-525.0,0.00027165,2]
[423192219,1779917435000,-1234.947,0.00027165,2]
[423192220,1779917435000,-1246.0,0.00027211,7]
[423192224,1779917435000,-173.5410728,0.00027253,3]
[423192222,1779917435000,-1544.0,0.00027253,3]
[423192221,1779917435000,-155.63,0.00027218,2]
[423192223,1779917435000,-1544.0,0.00027253,3]
[423192225,1779917435000,-151.0,0.00027253,3]
[423192226,1779917435000,-151.0,0.00027253,3]
[423192228,1779917435000,-151.0,0.00027253,3]
[423192230,1779917435000,-245.0,0.00027253,3]
[423192229,1779917435000,-151.0,0.00027253,3]
[423192217,1779917435000,-1272.0,0.00027165,2]
[423192232,1779917435000,-151.0,0.00027253,3]
[423192233,1779917435000,-151.0,0.00027253,3]
[423192234,1779917435000,-151.0,0.00027253,3]
[423192236,1779917435000,-151.0,0.00027253,3]
[423192235,1779917435000,-151.0,0.00027253,3]
[423192237,1779917435000,-151.0,0.00027253,3]
[423192239,1779917435000,-151.0,0.00027253,3]
[423192238,1779917435000,-151.0,0.00027253,3]
[423192240,1779917435000,-595.49430469,0.00027319,2]
[423192241,1779917435000,-22630.87504843,0.00027343,2]
[423192242,1779917435000,-928.0,0.00027383,2]
[423192243,1779917435000,-158.13465189,0.00027397,2]
[423192187,1779917435000,-158.58968581,0.00025,2]
[423192231,1779917435000,-151.0,0.00027253,3]
[423192215,1779917435000,-175.83,0.00026953,2]
[423192227,1779917435000,-151.0,0.00027253,3]
[423192214,1779917435000,-320.0,0.000267,7]
[423192185,1779917435000,-181.83,0.00024895,7]
[423192216,1779917435000,-595.49430469,0.00027099,2]
[423192186,1779917435000,-800.0,0.000249,9]
[423192189,1779917435000,-3012.67125491,0.00025,2]
[423192191,1779917435000,-216.68705661,0.00025,2]
[423192192,1779917435000,-450.98581358,0.00025,2]
[423192194,1779917435000,-163.61,0.0002502,2]
[423192193,1779917435000,-171.19,0.00025,2]
[423192195,1779917435000,-505.0,0.00025082,2]
[423192196,1779917435000,-155.63,0.00025583,2]
[423192198,1779917435000,-533.81330284,0.00025976,2]
[423192200,1779917435000,-298.34547,0.00025978,2]
[423192199,1779917435000,-298.34547,0.00025978,2]
[423192197,1779917435000,-2000.0,0.00025927,2]
[423192190,1779917435000,-230.7267243,0.00025,2]
[423192208,1779917435000,-595.49430469,0.00026371,2]
[423192213,1779917435000,-505.0,0.00026697,3]
[423192201,1779917435000,-298.34547,0.00025978,2]
[423192212,1779917435000,-3029.94,0.00026591,2]
[423192211,1779917435000,-595.49430469,0.0002657,2]
[423192210,1779917435000,-155.63,0.00026401,2]
[423192207,1779917435000,-574.6,0.00026296,2]
[423192209,1779917435000,-694.13676336,0.00026389,2]
[423192204,1779917435000,-45777.6793259,0.00025978,2]
[423192202,1779917435000,-298.34547,0.00025978,2]
[423192206,1779917435000,-595.49430469,0.0002625,2]
[423192203,1779917435000,-239.072686,0.00025978,2]
[423192205,1779917435000,-500.0,0.00026,2]
[423192283,1779917436000,-693.39197629,0.0002792,2]
[423192285,1779917436000,-157.54978746,0.0002792,2]
[423192286,1779917436000,-719.04747942,0.00027975,2]
[423192284,1779917436000,-721.12765534,0.0002792,2]
[423192282,1779917436000,-1428.38747117,0.0002792,2]
[423192276,1779917436000,-181.83,0.0002779,7]
[423192279,1779917436000,-578.20924308,0.0002792,2]
[423192281,1779917436000,-200.0,0.0002792,2]
[423192277,1779917436000,-150.12,0.00027816,30]
[423192278,1779917436000,-687.05630811,0.00027875,2]
[423192290,1779917436000,-155.63,0.00028036,2]
[423192280,1779917436000,-174.61919141,0.0002792,2]
[423192287,1779917436000,-325.0,0.00028,2]
[423192306,1779917436000,-200.0,0.00028388,2]
[423192288,1779917436000,-1208.62,0.00028027,7]
[423192292,1779917436000,-150.0,0.00028082,2]
[423192291,1779917436000,-154.84,0.00028053,7]
[423192293,1779917436000,-213.0,0.00028082,2]
[423192294,1779917436000,-302.46,0.00028082,2]
[423192295,1779917436000,-356.28556433,0.00028082,2]
[423192296,1779917436000,-773.24136889,0.00028085,2]
[423192298,1779917436000,-2000.0,0.0002822,2]
[423192297,1779917436000,-762.40182185,0.0002814,2]
[423192299,1779917436000,-200.0,0.0002822,2]
[423192300,1779917436000,-574.6,0.00028267,2]
[423192301,1779917436000,-2000.0,0.00028284,120]
[423192275,1779917436000,-159.54,0.00027781,30]
[423192289,1779917436000,-745.65223615,0.0002803,2]
[423192273,1779917436000,-151.0,0.00027512,7]
[423192245,1779917436000,-281.31,0.00027397,2]
[423192272,1779917436000,-320.0,0.000275,7]
[423192305,1779917436000,-154.84,0.00028369,2]
[423192244,1779917436000,-1500.0,0.00027397,2]
[423192246,1779917436000,-300.0,0.00027397,2]
[423192247,1779917436000,-1467.38,0.00027397,2]
[423192248,1779917436000,-151.0,0.00027397,2]
[423192249,1779917436000,-151.0,0.00027397,2]
[423192250,1779917436000,-151.0,0.00027397,2]
[423192251,1779917436000,-151.0,0.00027397,2]
[423192254,1779917436000,-151.0,0.00027397,2]
[423192253,1779917436000,-151.0,0.00027397,2]
[423192252,1779917436000,-151.0,0.00027397,2]
[423192256,1779917436000,-233.7731,0.00027397,2]
[423192255,1779917436000,-151.0,0.00027397,2]
[423192274,1779917436000,-154.84,0.00027738,30]
[423192259,1779917436000,-151.0,0.00027397,2]
[423192258,1779917436000,-151.0,0.00027397,2]
[423192257,1779917436000,-151.0,0.00027397,2]
[423192262,1779917436000,-151.0,0.00027397,2]
[423192261,1779917436000,-151.0,0.00027397,2]
[423192265,1779917436000,-254.169984,0.00027397,2]
[423192263,1779917436000,-151.0,0.00027397,2]
[423192264,1779917436000,-151.0,0.00027397,2]
[423192266,1779917436000,-151.0,0.00027397,2]
[423192267,1779917436000,-151.0,0.00027397,2]
[423192268,1779917436000,-151.0,0.00027397,2]
[423192271,1779917436000,-4379.15,0.00027397,10]
[423192270,1779917436000,-2296.43,0.00027397,10]
[423192269,1779917436000,-248.910712,0.00027397,2]
[423192260,1779917436000,-151.0,0.00027397,2]
[423192302,1779917436000,-150.12,0.00028304,7]
[423192353,1779917436000,-3445.26428472,0.00029,2]
[423192304,1779917436000,-163.72932804,0.00028334,2]
[423192339,1779917436000,-200.0,0.00029,2]
[423192340,1779917436000,-200.0,0.00029,2]
[423192344,1779917436000,-150.49,0.00029,2]
[423192343,1779917436000,-154.88,0.00029,7]
[423192342,1779917436000,-7388.12919795,0.00029,2]
[423192341,1779917436000,-200.0,0.00029,2]
[423192346,1779917436000,-10000.0,0.00029,2]
[423192345,1779917436000,-163.59,0.00029,2]
[423192347,1779917436000,-163.59,0.00029,2]
[423192348,1779917436000,-163.58,0.00029,2]
[423192351,1779917436000,-3445.26428472,0.00029,2]
[423192349,1779917436000,-163.58,0.00029,2]
[423192352,1779917436000,-170.10293799,0.00029,2]
[423192337,1779917436000,-200.0,0.00029,2]
[423192350,1779917436000,-3505.37714022,0.00029,2]
[423192356,1779917436000,-188.0,0.00029,2]
[423192357,1779917436000,-215.46156935,0.00029,7]
[423192355,1779917436000,-3445.26428472,0.00029,2]
[423192359,1779917436000,-187.78006524,0.00029016,2]
[423192354,1779917436000,-201.0,0.00029,2]
[423192358,1779917436000,-500.0,0.00029,2]
[423192360,1779917436000,-200.0,0.00029016,2]
[423192361,1779917436000,-1536.04360648,0.00029016,2]
[423192363,1779917436000,-150.12,0.0002928,30]
[423192362,1779917436000,-200.0,0.00029075,2]
[423192366,1779917436000,-439.39501385,0.000295,37]
[423192365,1779917436000,-260.37702515,0.000295,37]
[423192303,1779917436000,-505.0,0.00028313,5]
[423192367,1779917436000,-439.39501385,0.000295,37]
[423192338,1779917436000,-200.0,0.00029,2]
[423192364,1779917436000,-260.37702515,0.000295,37]
[423192336,1779917436000,-167.16450667,0.00028971,2]
[423192335,1779917436000,-10214.3809192,0.00028891,2]
[423192307,1779917436000,-181.08010149,0.00028468,2]
[423192309,1779917436000,-1481.2378076,0.00028468,2]
[423192312,1779917436000,-17742.1288828,0.00028786,2]
[423192308,1779917436000,-200.0,0.00028468,2]
[423192310,1779917436000,-200.0,0.00028502,2]
[423192313,1779917436000,-202.688267,0.00028786,7]
[423192316,1779917436000,-202.688267,0.00028786,7]
[423192317,1779917436000,-151.0,0.00028786,7]
[423192315,1779917436000,-202.688267,0.00028786,7]
[423192319,1779917436000,-304.004321,0.00028786,7]
[423192320,1779917436000,-304.004321,0.00028786,7]
[423192318,1779917436000,-151.0,0.00028786,7]
[423192314,1779917436000,-202.688267,0.00028786,7]
[423192311,1779917436000,-154.84,0.00028684,30]
[423192323,1779917436000,-200.0,0.00028787,2]
[423192321,1779917436000,-304.004321,0.00028786,7]
[423192334,1779917436000,-150.0,0.00028855,2]
[423192332,1779917436000,-150.0,0.00028855,2]
[423192333,1779917436000,-150.0,0.00028855,2]
[423192328,1779917436000,-150.0,0.00028855,2]
[423192330,1779917436000,-150.0,0.00028855,2]
[423192327,1779917436000,-150.0,0.00028855,2]
[423192324,1779917436000,-150.12,0.00028792,2]
[423192329,1779917436000,-150.0,0.00028855,2]
[423192322,1779917436000,-304.004321,0.00028786,7]
[423192331,1779917436000,-150.0,0.00028855,2]
[423192325,1779917436000,-1171.24,0.00028843,7]
[423192326,1779917436000,-155.63,0.00028853,2]
[423192403,1779917437000,-1544.0,0.00029678,3]
[423192397,1779917437000,-1544.0,0.00029678,3]
[423192401,1779917437000,-1544.0,0.00029678,3]
[423192399,1779917437000,-1544.0,0.00029678,3]
[423192405,1779917437000,-151.0,0.00029678,3]
[423192402,1779917437000,-1544.0,0.00029678,3]
[423192404,1779917437000,-151.0,0.00029678,3]
[423192406,1779917437000,-151.0,0.00029678,3]
[423192407,1779917437000,-151.0,0.00029678,3]
[423192400,1779917437000,-1544.0,0.00029678,3]
[423192398,1779917437000,-1544.0,0.00029678,3]
[423192414,1779917437000,-225.0,0.00029684,30]
[423192408,1779917437000,-152.0,0.00029678,3]
[423192409,1779917437000,-152.0,0.00029678,3]
[423192413,1779917437000,-154.0,0.00029684,30]
[423192411,1779917437000,-152.0,0.00029678,3]
[423192412,1779917437000,-152.0,0.00029678,3]
[423192416,1779917437000,-152.0,0.00029684,30]
[423192419,1779917437000,-198.0,0.00029685,30]
[423192417,1779917437000,-213.0,0.00029684,30]
[423192415,1779917437000,-159.0,0.00029684,30]
[423192418,1779917437000,-155.0,0.00029685,30]
[423192395,1779917437000,-1544.0,0.00029678,3]
[423192420,1779917437000,-151.0,0.00029685,30]
[423192410,1779917437000,-152.0,0.00029678,3]
[423192396,1779917437000,-1544.0,0.00029678,3]
[423192380,1779917437000,-159.59790301,0.000295,37]
[423192389,1779917437000,-1592.87721992,0.00029564,2]
[423192422,1779917437000,-446.0,0.00029685,30]
[423192368,1779917437000,-478.40619449,0.000295,37]
[423192373,1779917437000,-152.99524253,0.000295,37]
[423192369,1779917437000,-478.40619449,0.000295,37]
[423192370,1779917437000,-503.15935849,0.000295,37]
[423192372,1779917437000,-517.00782472,0.000295,37]
[423192371,1779917437000,-503.15935849,0.000295,37]
[423192374,1779917437000,-152.99524253,0.000295,37]
[423192378,1779917437000,-158.96203714,0.000295,37]
[423192379,1779917437000,-159.59790301,0.000295,37]
[423192376,1779917437000,-157.90140145,0.000295,37]
[423192377,1779917437000,-158.96203714,0.000295,37]
[423192375,1779917437000,-157.90140145,0.000295,37]
[423192382,1779917437000,-160.01150089,0.000295,37]
[423192383,1779917437000,-161.07095438,0.000295,37]
[423192381,1779917437000,-160.01150089,0.000295,37]
[423192384,1779917437000,-161.07095438,0.000295,37]
[423192386,1779917437000,-3638.9017149,0.00029511,2]
[423192387,1779917437000,-194.72792766,0.00029564,2]
[423192385,1779917437000,-603.64,0.0002951,2]
[423192390,1779917437000,-327.45865609,0.00029663,2]
[423192388,1779917437000,-200.0,0.00029564,2]
[423192392,1779917437000,-1544.0,0.00029678,3]
[423192391,1779917437000,-500.0,0.00029678,2]
[423192393,1779917437000,-1544.0,0.00029678,3]
[423192394,1779917437000,-1544.0,0.00029678,3]
[423192425,1779917437000,-150.12,0.00029768,7]
[423192426,1779917437000,-150.383,0.00029781,2]
[423192467,1779917437000,-525.0,0.00030165,2]
[423192453,1779917437000,-151.0,0.0003,7]
[423192455,1779917437000,-1000.0,0.00030092,14]
[423192456,1779917437000,-290.72886415,0.00030092,14]
[423192460,1779917437000,-1092.59010521,0.0003013,2]
[423192458,1779917437000,-200.0,0.00030112,2]
[423192459,1779917437000,-1651.81367706,0.00030112,2]
[423192462,1779917437000,-205.25366082,0.0003013,2]
[423192461,1779917437000,-645.20139965,0.0003013,2]
[423192464,1779917437000,-200.0,0.00030137,2]
[423192465,1779917437000,-418.54828766,0.00030137,2]
[423192463,1779917437000,-281.31,0.00030137,2]
[423192454,1779917437000,-247.63500857,0.00030089,3]
[423192466,1779917437000,-1272.0,0.00030165,2]
[423192471,1779917437000,-150.12,0.00030256,2]
[423192470,1779917437000,-574.6,0.00030239,2]
[423192472,1779917437000,-22630.87504843,0.00030325,2]
[423192469,1779917437000,-3064.359999,0.000302,2]
[423192475,1779917437000,-267.0,0.00030499,2]
[423192473,1779917437000,-151.0,0.00030341,2]
[423192477,1779917437000,-150.0,0.00030499,2]
[423192481,1779917437000,-164.0,0.00030499,2]
[423192484,1779917437000,-491.18798413,0.00030548,2]
[423192421,1779917437000,-155.0,0.00029685,30]
[423192485,1779917437000,-274.81214436,0.00030548,2]
[423192468,1779917437000,-1225.0,0.00030165,2]
[423192450,1779917437000,-151.0,0.0003,7]
[423192457,1779917437000,-201.93286098,0.00030112,2]
[423192452,1779917437000,-151.0,0.0003,7]
[423192424,1779917437000,-1000.0,0.000297,7]
[423192423,1779917437000,-215.46156935,0.000297,3]
[423192427,1779917437000,-289.487,0.00029781,2]
[423192429,1779917437000,-167.187,0.00029781,2]
[423192428,1779917437000,-150.0,0.00029781,2]
[423192430,1779917437000,-150.0,0.00029781,2]
[423192431,1779917437000,-150.124,0.00029781,2]
[423192436,1779917437000,-241.23665085,0.0002999,2]
[423192451,1779917437000,-151.0,0.0003,7]
[423192433,1779917437000,-1155.41454561,0.000299,2]
[423192437,1779917437000,-856.78229397,0.0003,2]
[423192432,1779917437000,-150.0,0.00029781,2]
[423192435,1779917437000,-1133.86,0.00029932,7]
[423192434,1779917437000,-505.0,0.00029928,7]
[423192439,1779917437000,-1849.69793934,0.0003,2]
[423192440,1779917437000,-1000.0,0.0003,2]
[423192441,1779917437000,-165.88679212,0.0003,2]
[423192442,1779917437000,-200.0,0.0003,2]
[423192443,1779917437000,-200.0,0.0003,2]
[423192449,1779917437000,-298.34547,0.0003,7]
[423192446,1779917437000,-298.34547,0.0003,7]
[423192448,1779917437000,-298.34547,0.0003,7]
[423192444,1779917437000,-200.0,0.0003,2]
[423192447,1779917437000,-298.34547,0.0003,7]
[423192438,1779917437000,-1123.40053171,0.0003,2]
[423192445,1779917437000,-200.0,0.0003,2]
[423192521,1779917438000,-2000.0,0.000316,2]
[423192529,1779917438000,-215.0,0.00031629,2]
[423192530,1779917438000,-687.05630811,0.00031673,2]
[423192527,1779917438000,-150.0,0.00031629,2]
[423192533,1779917438000,-154.0,0.00031684,30]
[423192528,1779917438000,-150.0,0.00031629,2]
[423192522,1779917438000,-150.0,0.00031629,2]
[423192525,1779917438000,-150.0,0.00031629,2]
[423192526,1779917438000,-150.0,0.00031629,2]
[423192523,1779917438000,-150.0,0.00031629,2]
[423192531,1779917438000,-150.0,0.00031681,30]
[423192524,1779917438000,-150.0,0.00031629,2]
[423192532,1779917438000,-166.0,0.00031681,30]
[423192546,1779917438000,-200.0,0.00032055,2]
[423192534,1779917438000,-225.0,0.00031684,30]
[423192536,1779917438000,-152.0,0.00031684,30]
[423192537,1779917438000,-213.0,0.00031684,30]
[423192538,1779917438000,-155.0,0.00031685,30]
[423192540,1779917438000,-151.0,0.00031685,30]
[423192541,1779917438000,-155.0,0.00031685,30]
[423192539,1779917438000,-198.0,0.00031685,30]
[423192545,1779917438000,-194.09606381,0.00032,120]
[423192544,1779917438000,-1842.0326633,0.00031756,2]
[423192543,1779917438000,-200.0,0.00031756,2]
[423192542,1779917438000,-446.0,0.00031685,30]
[423192520,1779917438000,-200.0,0.00031579,2]
[423192535,1779917438000,-159.0,0.00031684,30]
[423192519,1779917438000,-167.16450667,0.00031578,2]
[423192486,1779917438000,-163.61,0.00030568,120]
[423192517,1779917438000,-1096.48,0.00031292,7]
[423192488,1779917438000,-747.80937859,0.00030659,2]
[423192487,1779917438000,-599.60298507,0.00030659,2]
[423192489,1779917438000,-251.99009328,0.0003066,2]
[423192492,1779917438000,-154.0,0.00030684,30]
[423192493,1779917438000,-225.0,0.00030684,30]
[423192490,1779917438000,-200.0,0.0003066,2]
[423192491,1779917438000,-1712.93078311,0.0003066,2]
[423192494,1779917438000,-159.0,0.00030684,30]
[423192497,1779917438000,-213.0,0.00030684,30]
[423192499,1779917438000,-155.0,0.00030685,30]
[423192495,1779917438000,-152.0,0.00030684,30]
[423192507,1779917438000,-330.0,0.0003074,17]
[423192518,1779917438000,-505.0,0.00031543,8]
[423192502,1779917438000,-151.0,0.00030685,30]
[423192503,1779917438000,-181.83,0.00030685,7]
[423192504,1779917438000,-155.0,0.00030685,30]
[423192505,1779917438000,-446.0,0.00030685,30]
[423192508,1779917438000,-150.12,0.00030745,30]
[423192509,1779917438000,-1000.0,0.00030745,14]
[423192510,1779917438000,-694.13676336,0.00030893,2]
[423192513,1779917438000,-549.62428873,0.00031139,2]
[423192512,1779917438000,-654.91731218,0.00031139,2]
[423192514,1779917438000,-184.8778881,0.00031139,2]
[423192511,1779917438000,-200.0,0.00031096,2]
[423192516,1779917438000,-200.0,0.00031208,2]
[423192515,1779917438000,-1776.30922209,0.00031208,2]
[423192500,1779917438000,-198.0,0.00030685,30]
[423192549,1779917438000,-1910.18787185,0.00032304,2]
[423192637,1779917438000,-597.40108736,0.00032603,2]
[423192547,1779917438000,-165.39409464,0.00032173,57]
[423192594,1779917438000,-500.0,0.00032603,2]
[423192599,1779917438000,-500.0,0.00032603,2]
[423192601,1779917438000,-1801.0,0.00032603,2]
[423192603,1779917438000,-500.0,0.00032603,2]
[423192606,1779917438000,-500.83413808,0.00032603,2]
[423192604,1779917438000,-1801.0,0.00032603,2]
[423192608,1779917438000,-1801.0,0.00032603,2]
[423192611,1779917438000,-1801.0,0.00032603,2]
[423192613,1779917438000,-1801.0,0.00032603,2]
[423192615,1779917438000,-1487.70846093,0.00032603,2]
[423192618,1779917438000,-313.29153907,0.00032603,2]
[423192620,1779917438000,-1801.0,0.00032603,2]
[423192592,1779917438000,-500.0,0.00032603,2]
[423192625,1779917438000,-1801.0,0.00032603,2]
[423192629,1779917438000,-1801.0,0.00032603,2]
[423192631,1779917438000,-1801.0,0.00032603,2]
[423192641,1779917438000,-1801.0,0.00032603,2]
[423192643,1779917438000,-1801.0,0.00032603,2]
[423192633,1779917438000,-500.0,0.00032603,2]
[423192645,1779917438000,-1801.0,0.00032603,2]
[423192639,1779917438000,-1801.0,0.00032603,2]
[423192635,1779917438000,-1801.0,0.00032603,2]
[423192647,1779917438000,-1801.0,0.00032603,2]
[423192651,1779917438000,-1801.0,0.00032603,2]
[423192649,1779917438000,-1801.0,0.00032603,2]
[423192548,1779917438000,-574.6,0.0003221,5]
[423192626,1779917438000,-1801.0,0.00032603,2]
[423192590,1779917438000,-500.0,0.00032603,2]
[423192622,1779917438000,-1801.0,0.00032603,2]
[423192596,1779917438000,-1801.0,0.00032603,2]
[423192550,1779917438000,-175.83,0.00032344,2]
[423192589,1779917438000,-500.0,0.00032603,2]
[423192552,1779917438000,-151.0,0.000326,14]
[423192551,1779917438000,-1784.17,0.000326,14]
[423192557,1779917438000,-150.0,0.00032603,2]
[423192555,1779917438000,-150.0,0.00032603,2]
[423192554,1779917438000,-500.0,0.00032603,2]
[423192553,1779917438000,-500.0,0.00032602,2]
[423192558,1779917438000,-244.82538177,0.00032603,2]
[423192562,1779917438000,-150.0,0.00032603,2]
[423192560,1779917438000,-150.0,0.00032603,2]
[423192564,1779917438000,-152.7915746,0.00032603,2]
[423192566,1779917438000,-151.621712,0.00032603,7]
[423192556,1779917438000,-500.0,0.00032603,2]
[423192587,1779917438000,-500.0,0.00032603,2]
[423192588,1779917438000,-500.0,0.00032603,2]
[423192570,1779917438000,-500.0,0.00032603,2]
[423192586,1779917438000,-500.0,0.00032603,2]
[423192585,1779917438000,-500.0,0.00032603,2]
[423192583,1779917438000,-500.0,0.00032603,2]
[423192579,1779917438000,-500.0,0.00032603,2]
[423192584,1779917438000,-500.0,0.00032603,2]
[423192576,1779917438000,-500.0,0.00032603,2]
[423192574,1779917438000,-500.0,0.00032603,2]
[423192572,1779917438000,-500.0,0.00032603,2]
[423192568,1779917438000,-500.0,0.00032603,2]
[423192581,1779917438000,-175.31166964,0.00032603,2]
[423192707,1779917439000,-500.0,0.00032603,2]
[423192700,1779917439000,-500.0,0.00032603,2]
[423192703,1779917439000,-218.39893225,0.00032603,2]
[423192705,1779917439000,-171.50846167,0.00032603,2]
[423192702,1779917439000,-500.0,0.00032603,2]
[423192701,1779917439000,-150.0,0.00032603,2]